fUST/lending_fUST_20260123
["ID","MTS","AMOUNT","RATE_DAILY","PERIOD"]
[403085098,1769140732427,-255.90538236,0.0001436,2]
[403085099,1769140732455,-650.15172818,0.0001436,2]
[403085100,1769140732487,-500.0,0.0001436,2]
[403085101,1769140732519,-758.00361217,0.0001436,2]
[403085102,1769140732546,-500.0,0.0001436,2]
[403085103,1769140732573,-500.0,0.0001436,2]
[403085104,1769140732601,-500.0,0.0001436,2]
[403085105,1769140732629,-758.00361217,0.0001436,2]
[403085106,1769140732660,-500.0,0.0001436,2]
[403085107,1769140732864,-758.00361217,0.0001436,2]
[403085108,1769140732894,-500.0,0.0001436,2]
[403085109,1769140732924,-500.0,0.0001436,2]
[403085110,1769140732953,-500.0,0.0001436,2]
[403085111,1769140732980,-758.00361217,0.0001436,2]
[403085112,1769140733008,-500.0,0.0001436,2]
[403085113,1769140733036,-758.00361217,0.0001436,2]
[403085114,1769140733066,-500.0,0.0001436,2]
[403085115,1769140733361,-500.0,0.0001436,2]
[403085116,1769140733391,-758.00361217,0.0001436,2]
[403085117,1769140733419,-500.0,0.0001436,2]
[403085118,1769140733452,-500.0,0.0001436,2]
[403085119,1769140733483,-500.0,0.0001436,2]
[403085120,1769140733512,-758.00361217,0.0001436,2]
[403085121,1769140733541,-500.0,0.0001436,2]
[403085122,1769140733570,-758.00361217,0.0001436,2]
[403085123,1769140736643,-5000.0,0.00013815,2]
[403085124,1769140736762,-500.0,0.0001436,2]
[403085125,1769140736800,-500.0,0.0001436,2]
[403085126,1769140736842,-500.0,0.0001436,2]
[403085127,1769140736881,-758.00361217,0.0001436,2]
[403085128,1769140736917,-554.23990099,0.0001436,2]
[403085129,1769140736953,-500.0,0.0001436,2]
[403085130,1769140736989,-758.00361217,0.0001436,2]
[403085131,1769140737029,-500.0,0.0001436,2]
[403085132,1769140737072,-375.35252018,0.0001436,2]
[403085133,1769140737356,-500.0,0.0001436,2]
[403085134,1769140737393,-758.00361217,0.0001436,2]
[403085135,1769140737430,-500.0,0.0001436,2]
[403085136,1769140737934,-758.00361217,0.0001436,2]
[403085137,1769140737966,-500.0,0.0001436,2]
[403085138,1769140737998,-500.0,0.0001436,2]
[403085139,1769140738033,-758.00361217,0.0001436,2]
[403085140,1769140738065,-500.0,0.0001436,2]
[403085141,1769140738154,-758.00361217,0.0001436,2]
[403085142,1769140738188,-500.0,0.0001436,2]
[403085143,1769140738220,-758.00361217,0.0001436,2]
[403085144,1769140738253,-500.0,0.0001436,2]
[403085145,1769140738285,-758.00361217,0.0001436,2]
[403085146,1769140738317,-500.0,0.0001436,2]
[403085147,1769140738347,-758.00361217,0.0001436,2]
[403085148,1769140738379,-435.98110264,0.0001436,2]
[403085149,1769140743331,-300.0,0.00014359,2]
[403085150,1769140743360,-64.01889736,0.0001436,2]
[403085151,1769140743388,-500.0,0.0001436,2]
[403085152,1769140743416,-758.00361217,0.0001436,2]
[403085153,1769140743443,-500.0,0.0001436,2]
[403085154,1769140743471,-500.0,0.0001436,2]
[403085155,1769140743499,-758.00361217,0.0001436,2]
[403085156,1769140743527,-500.0,0.0001436,2]
[403085157,1769140743554,-758.00361217,0.0001436,2]
[403085158,1769140743582,-223.95053226,0.0001436,2]
[403085159,1769140745221,-276.04946774,0.0001436,2]
[403085160,1769140745253,-758.00361217,0.0001436,2]
[403085161,1769140745285,-758.00361217,0.0001436,2]
[403085162,1769140745315,-500.0,0.0001436,2]
[403085163,1769140745345,-758.00361217,0.0001436,2]
[403085164,1769140745374,-500.0,0.0001436,2]
[403085165,1769140745402,-758.00361217,0.0001436,2]
[403085166,1769140745430,-500.0,0.0001436,2]
[403085167,1769140745667,-758.00361217,0.0001436,2]
[403085168,1769140745696,-500.0,0.0001436,2]
[403085169,1769140745725,-758.00361217,0.0001436,2]
[403085170,1769140745755,-500.0,0.0001436,2]
[403085171,1769140745785,-500.0,0.0001436,2]
[403085172,1769140745812,-758.00361217,0.0001436,2]
[403085173,1769140745844,-500.0,0.0001436,2]
[403085174,1769140745874,-693.98471481,0.0001436,2]
[403085175,1769140745961,-64.01889736,0.0001436,2]
[403085176,1769140745988,-500.0,0.0001436,2]
[403085177,1769140746017,-758.00361217,0.0001436,2]
[403085178,1769140746045,-500.0,0.0001436,2]
[403085179,1769140746075,-500.0,0.0001436,2]
[403085180,1769140746104,-758.00361217,0.0001436,2]
[403085181,1769140746132,-500.0,0.0001436,2]
[403085182,1769140746160,-500.0,0.0001436,2]
[403085183,1769140746187,-500.0,0.0001436,2]
[403085184,1769140746214,-81.95414443,0.0001436,2]
[403085185,1769140746285,-676.04946774,0.0001436,2]
[403085186,1769140746312,-758.00361217,0.0001436,2]
[403085187,1769140746341,-500.0,0.0001436,2]
[403085188,1769140746370,-758.00361217,0.0001436,2]
[403085189,1769140746397,-500.0,0.0001436,2]
[403085190,1769140746430,-758.00361217,0.0001436,2]
[403085191,1769140746460,-500.0,0.0001436,2]
[403085192,1769140746487,-341.88577933,0.0001436,2]
[403085193,1769140749553,-416.11783284,0.0001436,2]
[403085194,1769140749586,-500.0,0.0001436,2]
[403085195,1769140749618,-758.00361217,0.0001436,2]
[403085196,1769140749653,-758.00361217,0.0001436,2]
[403085197,1769140749691,-500.0,0.0001436,2]
[403085198,1769140749724,-758.00361217,0.0001436,2]
[403085199,1769140749759,-500.0,0.0001436,2]
[403085200,1769140749796,-758.00361217,0.0001436,2]
[403085201,1769140749969,-500.0,0.0001436,2]
[403085202,1769140750003,-758.00361217,0.0001436,2]
[403085203,1769140750037,-758.00361217,0.0001436,2]
[403085204,1769140750068,-758.00361217,0.0001436,2]
[403085205,1769140750101,-408.38881155,0.0001436,2]
[403085206,1769140750133,-758.00361217,0.0001436,2]
[403085207,1769140750351,-500.0,0.0001436,2]
[403085208,1769140750388,-361.19986737,0.0001436,2]
[403085209,1769140750481,-396.8037448,0.0001436,2]
[403085210,1769140750510,-500.0,0.0001436,2]
[403085211,1769140750539,-758.00361217,0.0001436,2]
[403085212,1769140750570,-500.0,0.0001436,2]
[403085213,1769140750598,-500.0,0.0001436,2]
[403085214,1769140750628,-758.00361217,0.0001436,2]
[403085215,1769140750657,-500.0,0.0001436,2]
[403085216,1769140750686,-758.00361217,0.0001436,2]
[403085217,1769140750715,-158.38083738,0.0001436,2]
[403085218,1769140752573,-341.61916262,0.0001436,2]
[403085219,1769140752603,-758.00361217,0.0001436,2]
[403085220,1769140752632,-758.00361217,0.0001436,2]
[403085221,1769140752660,-500.0,0.0001436,2]
[403085222,1769140752688,-758.00361217,0.0001436,2]
[403085223,1769140752716,-500.0,0.0001436,2]
[403085224,1769140752744,-758.00361217,0.0001436,2]
[403085225,1769140752772,-500.0,0.0001436,2]
[403085226,1769140752932,-500.0,0.0001436,2]
[403085227,1769140752966,-758.00361217,0.0001436,2]
[403085228,1769140752995,-500.0,0.0001436,2]
[403085229,1769140753024,-500.0,0.0001436,2]
[403085230,1769140753052,-500.0,0.0001436,2]
[403085231,1769140753081,-758.00361217,0.0001436,2]
[403085232,1769140753108,-758.00361217,0.0001436,2]
[403085233,1769140753136,-500.0,0.0001436,2]
[403085234,1769140753233,-500.0,0.0001436,2]
[403085235,1769140753260,-758.00361217,0.0001436,2]
[403085236,1769140753289,-500.0,0.0001436,2]
[403085237,1769140753316,-758.00361217,0.0001436,2]
[403085238,1769140753344,-500.0,0.0001436,2]
[403085239,1769140753372,-758.00361217,0.0001436,2]
[403085240,1769140753399,-758.00361217,0.0001436,2]
[403085241,1769140753427,-435.98110264,0.0001436,2]
[403085242,1769140753526,-64.01889736,0.0001436,2]
[403085243,1769140753554,-758.00361217,0.0001436,2]
[403085244,1769140753582,-758.00361217,0.0001436,2]
[403085245,1769140753611,-500.0,0.0001436,2]
[403085246,1769140753639,-758.00361217,0.0001436,2]
[403085247,1769140753667,-500.0,0.0001436,2]
[403085248,1769140753695,-500.0,0.0001436,2]
[403085249,1769140753723,-758.00361217,0.0001436,2]
[403085250,1769140753759,-145.83313159,0.0001436,2]
[403085251,1769140754165,-516.27704474,0.0001436,2]
[403085252,1769140754200,-662.11017633,0.0001436,2]
[403085253,1769140754233,-662.11017633,0.0001436,2]
[403085254,1769140754266,-662.11017633,0.0001436,2]
[403085255,1769140754296,-662.11017633,0.0001436,2]
[403085256,1769140754328,-662.11017633,0.0001436,2]
[403085257,1769140754362,-662.11017633,0.0001436,2]
[403085258,1769140754393,-360.02361823,0.0001436,2]
[403085259,1769140755731,-302.0865581,0.0001436,2]
[403085260,1769140755762,-662.11017633,0.0001436,2]
[403085261,1769140755791,-662.11017633,0.0001436,2]
[403085262,1769140755824,-662.11017633,0.0001436,2]
[403085263,1769140755854,-662.11017633,0.0001436,2]
[403085264,1769140755885,-662.11017633,0.0001436,2]
[403085265,1769140755916,-662.11017633,0.0001436,2]
[403085266,1769140755946,-662.11017633,0.0001436,2]
[403085267,1769140756116,-662.11017633,0.0001436,2]
[403085268,1769140756146,-662.11017633,0.0001436,2]
[403085269,1769140756177,-662.11017633,0.0001436,2]
[403085270,1769140756206,-662.11017633,0.0001436,2]
[403085271,1769140756238,-662.11017633,0.0001436,2]
[403085272,1769140756269,-739.05352187,0.0001436,2]
[403085273,1769140756300,-739.05352187,0.0001436,2]
[403085274,1769140756473,-739.05352187,0.0001436,2]
[403085275,1769140756503,-739.05352187,0.0001436,2]
[403085276,1769140756533,-739.05352187,0.0001436,2]
[403085277,1769140756564,-739.05352187,0.0001436,2]
[403085278,1769140756595,-739.05352187,0.0001436,2]
[403085279,1769140756624,-739.05352187,0.0001436,2]
[403085280,1769140756655,-392.31421569,0.0001436,2]
[403085281,1769140756764,-346.73930618,0.0001436,2]
[403085282,1769140756794,-739.05352187,0.0001436,2]
[403085283,1769140756826,-739.05352187,0.0001436,2]
[403085284,1769140757029,-739.05352187,0.0001436,2]
[403085285,1769140757064,-739.05352187,0.0001436,2]
[403085286,1769140757093,-739.05352187,0.0001436,2]
[403085287,1769140757122,-739.05352187,0.0001436,2]
[403085288,1769140762028,-6807.35941017,0.0001436,2]
[403085289,1769140762058,-10000.01,0.0001436,2]
[403085290,1769140762152,-3593.69675366,0.0001436,2]
[403085291,1769140762184,-739.05352187,0.0001436,2]
[403085292,1769140762214,-595.45592707,0.0001436,2]
[403085293,1769140762271,-143.5975948,0.0001436,2]
[403085294,1769140762409,-739.05352187,0.0001436,2]
[403085295,1769140762438,-739.05352187,0.0001436,2]
[403085296,1769140762466,-739.05352187,0.0001436,2]
[403085297,1769140762495,-739.05352187,0.0001436,2]
[403085298,1769140762523,-739.05352187,0.0001436,2]
[403085299,1769140762553,-739.05352187,0.0001436,2]
[403085300,1769140762582,-392.31421569,0.0001436,2]
[403085301,1769140762678,-346.73930618,0.0001436,2]
[403085302,1769140762908,-662.11017624,0.0001436,2]
[403085303,1769140762936,-3675.78964752,0.0001436,2]
[403085304,1769140762968,-1324.21035248,0.0001436,2]
[403085305,1769140762996,-500.0,0.00014362,2]
[403085306,1769140763025,-607.38285554,0.00014362,2]
[403085307,1769140763054,-150.0,0.00014362,2]
[403085308,1769140763083,-500.0,0.00014362,2]
[403085309,1769140763112,-500.0,0.00014362,2]
[403085310,1769140763141,-500.0,0.00014362,2]
[403085311,1769140763172,-500.0,0.00014362,2]
[403085312,1769140763200,-336.82358396,0.00014362,2]
[403085313,1769140763389,-163.17641604,0.00014362,2]
[403085314,1769140763399,-336.82358396,0.00014362,2]
[403085315,1769140763413,-163.17641604,0.00014362,2]
[403085316,1769140763423,-336.82358396,0.00014362,2]
[403085317,1769140763437,-163.17641604,0.00014362,2]
[403085318,1769140763446,-280.16060639,0.00014362,2]
[403085319,1769140763455,-56.66297757,0.00014399,2]
[403085320,1769140808265,500.0,0.00013699,2]
[403085321,1769140927254,500.0,0.00013699,2]
[403085322,1769140931332,500.0,0.00013699,2]
[403085323,1769140939474,-288.0,0.00014215,2]
[403085324,1769140939505,-4424.01,0.00014216,2]
[403085325,1769140970991,-5000.0,0.00013933,2]
[403085326,1769140971224,-5000.0,0.00014074,2]
[403085327,1769140976629,-238.90574758,0.00014215,2]
[403085328,1769140976667,-500.0,0.00014215,2]
[403085329,1769140976703,-500.0,0.00014215,2]
[403085330,1769140976735,-394.90243871,0.00014215,2]
[403085331,1769140976765,-500.0,0.00014215,2]
[403085332,1769140976795,-500.0,0.00014215,2]
[403085333,1769140976824,-450.47110011,0.00014215,2]
[403085334,1769140976854,-500.0,0.00014215,2]
[403085335,1769140976888,-500.0,0.00014215,2]
[403085336,1769140976918,-500.0,0.00014215,2]
[403085337,1769140976949,-331.4514272,0.00014215,2]
[403085338,1769140981112,-2887.78,0.00014073,2]
[403085339,1769140981142,-168.5485728,0.00014215,2]
[403085340,1769140981172,-500.0,0.00014215,2]
[403085341,1769140981202,-500.0,0.00014215,2]
[403085342,1769140981231,-500.0,0.00014215,2]
[403085343,1769140981261,-387.3528544,0.00014215,2]
[403085344,1769140981579,-112.6471456,0.00014215,2]
[403085345,1769140981610,-500.0,0.00014215,2]
[403085346,1769140981638,-500.0,0.00014215,2]
[403085347,1769140981666,-500.0,0.00014215,2]
[403085348,1769140981694,-500.0,0.00014215,2]
[403085349,1769140981725,-500.0,0.00014215,2]
[403085350,1769140981753,-481.8512138,0.00014215,2]
[403085351,1769140981780,-500.0,0.00014215,2]
[403085352,1769140981810,-500.0,0.00014215,2]
[403085353,1769140981838,-500.0,0.00014215,2]
[403085354,1769140981869,-311.0132812,0.00014215,2]
[403085355,1769140984260,-188.9867188,0.00014215,2]
[403085356,1769140984292,-451.70117813,0.00014215,2]
[403085357,1769140984325,-500.0,0.00014215,2]
[403085358,1769140984356,-500.0,0.00014215,2]
[403085359,1769140984387,-500.0,0.00014216,2]
[403085360,1769140984416,-500.0,0.00014216,2]
[403085361,1769140984445,-500.0,0.00014216,2]
[403085362,1769140984475,-500.0,0.00014216,2]
[403085363,1769140984504,-623.0,0.00014216,2]
[403085364,1769140988205,240.50872747,0.00013699,2]
[403085365,1769140996534,504.27021837,0.00013699,2]
[403085366,1769140999343,500.0,0.00013699,2]
[403085367,1769141019045,-4248.89343356,0.00013963,2]
[403085368,1769141037416,150.0,7.641e-05,2]
[403085369,1769141037830,150.0,8.335e-05,2]
[403085370,1769141038273,207.19,9.03e-05,2]
[403085371,1769141038670,276.25,9.725e-05,2]
[403085372,1769141039081,345.32,0.00010419,2]
[403085373,1769141039469,414.38,0.00011114,2]
[403085374,1769141039861,483.44,0.00011809,2]
[403085375,1769141040381,552.51,0.00012503,2]
[403085376,1769141040760,621.57,0.00013198,2]
[403085377,1769141050109,500.0,0.00013699,2]
[403085378,1769141051038,-690.63,0.00013892,2]
[403085379,1769141051067,-3618.75,0.00014104,2]
[403085380,1769141057610,-300.0,0.00013673,2]
[403085381,1769141057641,-1381.25,0.00014104,2]
[403085382,1769141057670,-499.99999999,0.00014215,2]
[403085383,1769141057699,-300.0,0.00014246,2]
[403085384,1769141057727,-500.0,0.00014247,2]
[403085385,1769141057756,-501.11341645,0.00014247,2]
[403085386,1769141057784,-1000.0,0.00014247,2]
[403085387,1769141057814,-266.97675546,0.00014308,2]
[403085388,1769141057844,-205.6773314,0.0001436,2]
[403085389,1769141061566,-89.9749934,0.0001436,2]
[403085390,1769141061594,-443.33702243,0.00014399,2]
[403085391,1769141061622,-319.66263641,0.00014399,2]
[403085392,1769141061650,-2567.25270331,0.00014496,2]
[403085393,1769141103868,178.44854376,0.00013699,2]
[403085394,1769141114508,150.0,7.643e-05,2]
[403085395,1769141114897,150.0,8.338e-05,2]
[403085396,1769141115294,150.0,9.033e-05,2]
[403085397,1769141115730,150.0,9.728e-05,2]
[403085398,1769141116115,150.0,0.00010423,2]
[403085399,1769141116514,150.0,0.00011117,2]
[403085400,1769141117194,150.0,0.00011812,2]
[403085401,1769141117333,156.3,0.00012507,2]
[403085402,1769141117759,175.84,0.00013202,2]
[403085403,1769141134975,-152.98244463,0.00013897,2]
[403085404,1769141170477,500.0,0.00013699,2]
[403085405,1769141228279,619.21869677,0.00013699,2]
[403085406,1769141255396,5000.0,0.00013897,2]
[403085407,1769141263748,3574.82641397,0.00013897,2]
[403085408,1769141263771,1425.17358603,0.00013897,2]
[403085409,1769141279015,5000.0,0.00013897,2]
[403085410,1769141280114,175.01,4.995e-05,2]
[403085411,1769141280269,175.0,4.995e-05,2]
[403085412,1769141285313,500.0,0.00013699,2]
[403085413,1769141286864,2724.82641397,0.00013897,2]
[403085414,1769141286888,2275.17358603,0.00013897,2]
[403085415,1769141289369,500.0,0.00013699,2]
[403085416,1769141303000,5000.0,0.00013897,2]
[403085417,1769141310538,150.0,7.71e-05,2]
[403085418,1769141310937,150.0,8.411e-05,2]
[403085419,1769141311353,150.0,9.111e-05,2]
[403085420,1769141311747,196.08,9.812e-05,2]
[403085421,1769141312151,245.1,0.00010513,2]
[403085422,1769141312790,294.12,0.00011214,2]
[403085423,1769141312948,343.14,0.00011915,2]
[403085424,1769141313593,392.16,0.00012616,2]
[403085425,1769141313767,304.23641397,0.00013317,2]
[403085426,1769141313791,136.94358603,0.00013317,2]
[403085427,1769141324984,5000.0,0.00013897,2]
[403085428,1769141343646,500.0,0.00013273,2]
[403085429,1769141343704,1000.0,0.00013821,2]
[403085430,1769141347749,3363.06641397,0.00013897,2]
[403085431,1769141347772,1636.93358603,0.00013897,2]
[403085435,1769141371163,5000.0,0.00013897,2]
[403085436,1769141384219,150.0,7.644e-05,2]
[403085437,1769141384693,150.0,8.339e-05,2]
[403085438,1769141385098,150.0,9.034e-05,2]
[403085439,1769141385503,150.0,9.729e-05,2]
[403085440,1769141385906,150.0,0.00010424,2]
[403085441,1769141387063,150.0,0.00011119,2]
[403085442,1769141387236,150.0,0.00011814,2]
[403085443,1769141387634,151.68,0.00012509,2]
[403085444,1769141388037,170.64,0.00013204,2]
[403085445,1769141393794,1990.75641397,0.00013897,2]
[403085446,1769141393817,3009.24358603,0.00013897,2]
[403085447,1769141408349,464.0,0.00013273,2]
[403085448,1769141413768,500.0,0.00013699,2]
[403085449,1769141416296,5000.0,0.00013897,2]
[403085465,1769141436324,-500.0,0.00014132,2]
[403085467,1769141436334,-548.01167302,0.00014132,2]
[403085469,1769141436344,-622.0,0.00014132,2]
[403085471,1769141436353,-271.60462376,0.00014189,2]
[403085473,1769141436362,-436.0,0.00014246,2]
[403085475,1769141436372,-1000.0,0.00014247,2]
[403085477,1769141436381,-1000.0,0.00014247,2]
[403085479,1769141436390,-500.0,0.00014368,2]
[403085481,1769141436399,-500.0,0.00014398,2]
[403085482,1769141436408,-312.80497315,0.00014398,2]
[403085483,1769141436417,-500.0,0.00014398,2]
[403085484,1769141436427,-500.0,0.00014398,2]
[403085486,1769141436436,-500.0,0.00014398,2]
[403085489,1769141436445,-500.0,0.00014398,2]
[403085491,1769141436454,-372.38378638,0.00014398,2]
[403085495,1769141436466,-127.61621362,0.00014398,2]
[403085498,1769141436475,-495.17011782,0.00014398,2]
[403085500,1769141436484,-500.0,0.00014398,2]
[403085503,1769141436493,-500.0,0.00014398,2]
[403085505,1769141436503,-500.0,0.00014398,2]
[403085508,1769141436512,-500.0,0.00014398,2]
[403085511,1769141436521,-500.0,0.00014398,2]
[403085513,1769141436530,-500.0,0.00014398,2]
[403085516,1769141436539,-500.0,0.00014398,2]
[403085519,1769141436549,-531.62890541,0.00014398,2]
[403085522,1769141436559,-500.0,0.00014398,2]
[403085524,1769141436567,-500.0,0.00014398,2]
[403085527,1769141436577,-500.0,0.00014398,2]
[403085530,1769141436587,-500.0,0.00014398,2]
[403085533,1769141436598,-500.0,0.00014398,2]
[403085536,1769141436607,-500.0,0.00014398,2]
[403085538,1769141436616,-500.0,0.00014398,2]
[403085540,1769141436625,-187.91403618,0.00014398,2]
[403085542,1769141436634,-535.01744474,0.00014398,2]
[403085544,1769141436643,-500.0,0.00014398,2]
[403085546,1769141436652,-500.0,0.00014398,2]
[403085548,1769141436662,-250.0,0.00014398,2]
[403085549,1769141436671,-232.45661623,0.00014398,2]
[403085550,1769141436683,-10.64494334,0.00014398,2]
[403085551,1769141436692,-500.0,0.00014398,2]
[403085552,1769141436701,-267.84181244,0.00014398,2]
[403085554,1769141436713,-232.15818756,0.00014398,2]
[403085555,1769141436723,-250.0,0.00014398,2]
[403085556,1769141436732,-495.94830644,0.00014398,2]
[403085557,1769141436743,-451.39396205,0.00014398,2]
[403085558,1769141436755,-570.10345162,0.00014398,2]
[403085559,1769141436766,-1642.10956879,0.00014398,2]
[403085560,1769141436777,-500.0,0.00014498,2]
[403085561,1769141436786,-500.0,0.00014498,2]
[403085562,1769141436795,-500.0,0.00014498,2]
[403085563,1769141436804,-500.0,0.00014499,2]
[403085564,1769141436813,-500.0,0.00014499,2]
[403085565,1769141436822,-500.0,0.00014499,2]
[403085566,1769141436831,-500.0,0.00014499,2]
[403085567,1769141436839,-500.0,0.00014499,2]
[403085568,1769141436848,-500.0,0.00014499,2]
[403085569,1769141436857,-500.0,0.00014499,2]
[403085570,1769141436866,-510.03846702,0.00014499,2]
[403085571,1769141436875,-1000.0,0.00014795,2]
[403085572,1769141436883,-1500.0,0.00014795,2]
[403085573,1769141436892,-500.0,0.0001489,2]
[403085574,1769141436901,-500.0,0.00014899,2]
[403085575,1769141436910,-500.0,0.00014899,2]
[403085576,1769141436919,-500.0,0.00014899,2]
[403085577,1769141436928,-500.0,0.00014899,2]
[403085578,1769141436937,-500.0,0.00014899,2]
[403085579,1769141436946,-396.87314036,0.00014899,2]
[403085615,1769141437920,-103.12685964,0.00014899,2]
[403085617,1769141437930,-500.0,0.00014899,2]
[403085619,1769141437940,-500.0,0.00014899,2]
[403085621,1769141437949,-500.0,0.00014899,2]
[403085623,1769141437959,-500.0,0.00014899,2]
[403085625,1769141437968,-500.0,0.00014899,2]
[403085627,1769141437977,-500.0,0.00014899,2]
[403085629,1769141437987,-500.0,0.00014899,2]
[403085631,1769141437996,-500.0,0.00014899,2]
[403085633,1769141438006,-500.0,0.00014899,2]
[403085635,1769141438018,-500.0,0.00014899,2]
[403085637,1769141438028,-500.0,0.00014899,2]
[403085639,1769141438037,-500.0,0.00014899,2]
[403085641,1769141438046,-500.0,0.00014899,2]
[403085643,1769141438057,-588.06199018,0.00014899,2]
[403085645,1769141438066,-1156.27817474,0.00014902,2]
[403085647,1769141438075,-282.28394703,0.00015342,2]
[403085649,1769141438086,-289.76740621,0.000154,2]
[403085651,1769141438096,-321.85877864,0.000154,2]
[403085653,1769141438105,-223.68255462,0.000154,2]
[403085655,1769141438115,-260.33010918,0.000154,2]
[403085657,1769141438124,-557.5788265,0.00015578,2]
[403085659,1769141438134,-461.67526835,0.00015578,2]
[403085661,1769141438143,-10000.0,0.00015687,2]
[403085663,1769141438152,-500.0,0.00015749,30]
[403085665,1769141438162,-500.0,0.00015749,30]
[403085667,1769141438171,-202.82215594,0.00015996,2]
[403085669,1769141438180,-500.0,0.00015996,2]
[403085671,1769141438189,-500.0,0.00015996,2]
[403085673,1769141438198,-500.0,0.00015996,2]
[403085675,1769141438207,-500.0,0.00015996,2]
[403085677,1769141438216,-500.0,0.00015996,2]
[403085679,1769141438226,-500.0,0.00015996,2]
[403085681,1769141438244,-500.0,0.00015996,2]
[403085683,1769141438257,-500.0,0.00015996,2]
[403085685,1769141438267,-150.0,0.00015996,2]
[403085687,1769141438276,-150.0,0.00015996,2]
[403085689,1769141438286,-150.0,0.00015996,2]
[403085691,1769141438304,-500.0,0.00015996,2]
[403085693,1769141438322,-816.7,0.00016033,2]
[403085695,1769141438335,-321.85877864,0.00016099,9]
[403085697,1769141438344,-211.36529132,0.00016127,2]
[403085699,1769141438357,-135.7937743,0.00016127,2]
[403085701,1769141438367,-500.0,0.00016133,2]
[403085703,1769141438376,-500.0,0.00016133,2]
[403085705,1769141438385,-500.0,0.00016133,2]
[403085707,1769141438394,-500.0,0.00016133,2]
[403085709,1769141438403,-627.53201564,0.00016133,2]
[403085711,1769141438413,-500.0,0.00016133,2]
[403085713,1769141438422,-500.0,0.00016133,2]
[403085715,1769141438431,-500.0,0.00016133,2]
[403085717,1769141438440,-150.0,0.00016133,2]
[403085719,1769141438450,-500.0,0.00016133,2]
[403085721,1769141438459,-320.49345603,0.00016189,2]
[403085723,1769141438468,-500.0,0.0001627,2]
[403085725,1769141438477,-187.30957372,0.0001627,2]
[403085727,1769141438486,-500.0,0.0001627,2]
[403085729,1769141438495,-500.0,0.0001627,2]
[403085731,1769141438504,-500.0,0.0001627,2]
[403085733,1769141438512,-218.17817243,0.0001627,2]
[403085735,1769141438521,-500.0,0.0001627,2]
[403085737,1769141438530,-500.0,0.0001627,2]
[403085739,1769141438540,-500.0,0.00016407,2]
[403085741,1769141438550,-500.0,0.00016407,2]
[403085743,1769141438559,-500.0,0.00016407,2]
[403085745,1769141438568,-500.0,0.00016407,2]
[403085747,1769141438577,-500.0,0.00016407,2]
[403085749,1769141438587,-500.0,0.00016407,2]
[403085751,1769141438596,-295.6523248,0.00016451,2]
[403085753,1769141438605,-10737.02624014,0.00016542,2]
[403085755,1769141438614,-500.0,0.00016544,2]
[403085757,1769141438623,-500.0,0.00016544,2]
[403085759,1769141438632,-500.0,0.00016544,2]
[403085761,1769141438642,-500.0,0.00016544,2]
[403085763,1769141438651,-500.0,0.00016544,2]
[403085765,1769141438660,-500.0,0.00016544,2]
[403085767,1769141438669,-500.0,0.00016681,2]
[403085769,1769141438677,-500.0,0.00016681,2]
[403085771,1769141438693,-500.0,0.00016681,2]
[403085773,1769141438711,-498.83800495,0.00016681,2]
[403085775,1769141438719,-500.0,0.00016681,2]
[403085777,1769141438728,-571.0,0.00016681,2]
[403085779,1769141438738,-223.68255462,0.00016798,17]
[403085781,1769141438747,-321.85877864,0.00016798,17]